fUST/lending_fUST_20250210
["ID","MTS","AMOUNT","RATE_DAILY","PERIOD"]
[352555867,1739165442953,-500.0,0.00011369,2]
[352555868,1739165442963,-500.0,0.00011369,2]
[352555869,1739165442973,-500.0,0.00011369,2]
[352555870,1739165442983,-500.0,0.00011369,2]
[352555871,1739165442994,-500.0,0.00011369,2]
[352555872,1739165443004,-500.0,0.00011369,2]
[352555873,1739165443014,-500.0,0.00011369,2]
[352555874,1739165443024,-500.0,0.00011369,2]
[352555876,1739165443035,-500.0,0.00011369,2]
[352555878,1739165443045,-500.0,0.00011369,2]
[352555880,1739165443056,-500.0,0.00011369,2]
[352555881,1739165443066,-500.0,0.00011369,2]
[352555884,1739165443076,-553.73,0.00011369,2]
[352555886,1739165443087,-500.0,0.00011369,2]
[352555888,1739165443097,-669.05,0.00011369,2]
[352555889,1739165443108,-500.0,0.00011369,2]
[352555890,1739165443118,-500.0,0.00011369,2]
[352555891,1739165443128,-1609.86,0.00011369,2]
[352555892,1739165443138,-1512.52,0.00011369,2]
[352555894,1739165443148,-500.0,0.00011369,2]
[352555895,1739165443159,-1362.82,0.00011369,2]
[352555896,1739165443169,-5665.32,0.00011369,2]
[352555897,1739165443179,-500.0,0.00011369,2]
[352555898,1739165443190,-11677.26,0.00011369,2]
[352555899,1739165443200,-819.43,0.00011369,2]
[352555900,1739165443210,-512.45,0.00011369,2]
[352555901,1739165443221,-500.0,0.00011369,2]
[352555902,1739165443231,-500.0,0.00011369,2]
[352555903,1739165443241,-500.0,0.00011369,2]
[352555905,1739165443252,-500.0,0.00011369,2]
[352555907,1739165443263,-500.0,0.00011369,2]
[352555908,1739165443273,-500.0,0.00011369,2]
[352555909,1739165443283,-214.73044086,0.00011369,2]
[352555910,1739165443294,-673.93,0.00011369,2]
[352555911,1739165443304,-759.29,0.00011369,2]
[352555912,1739165443315,-500.0,0.00011369,2]
[352555913,1739165443326,-500.0,0.00011369,2]
[352555914,1739165443336,-846.63,0.00011369,2]
[352555916,1739165443347,-650.09,0.00011369,2]
[352555917,1739165443357,-500.0,0.00011369,2]
[352555918,1739165443368,-500.0,0.00011369,2]
[352555919,1739165443378,-1097.65,0.00011369,2]
[352555920,1739165443389,-267.63,0.00011369,2]
[352555921,1739165443400,-1101.87,0.00011369,2]
[352555922,1739165443410,-500.0,0.00011369,2]
[352555923,1739165443421,-505.75,0.00011369,2]
[352555924,1739165443431,-561.61,0.00011369,2]
[352555925,1739165443441,-500.0,0.00011369,2]
[352555926,1739165443452,-530.58386184,0.00011369,2]
[352555927,1739165443463,-500.0,0.00011369,2]
[352555928,1739165443473,-500.0,0.00011369,2]
[352555929,1739165443636,-500.0,0.00011369,2]
[352555930,1739165443651,-500.0,0.00011369,2]
[352555931,1739165443662,-528.83,0.00011369,2]
[352555932,1739165443672,-500.0,0.00011369,2]
[352555933,1739165443681,-500.0,0.00011369,2]
[352555934,1739165443691,-1367.88,0.00011369,2]
[352555935,1739165443700,-500.0,0.00011369,2]
[352555936,1739165443710,-500.0,0.00011369,2]
[352555937,1739165443719,-500.0,0.00011369,2]
[352555938,1739165443729,-500.0,0.00011369,2]
[352555939,1739165443738,-500.0,0.00011369,2]
[352555940,1739165443748,-4169.79,0.00011369,2]
[352555941,1739165443757,-1374.75,0.00011369,2]
[352555942,1739165443767,-315.35780795,0.00011369,2]
[352555943,1739165443776,-718.02,0.00011369,2]
[352555944,1739165443785,-500.0,0.00011369,2]
[352555945,1739165443794,-500.0,0.00011369,2]
[352555946,1739165443803,-500.0,0.00011369,2]
[352555947,1739165443813,-500.0,0.00011369,2]
[352555948,1739165443823,-4085.98,0.00011369,2]
[352555949,1739165443832,-500.0,0.00011503,2]
[352555950,1739165443841,-500.0,0.00011506,2]
[352555951,1739165443851,-500.0,0.00011506,2]
[352555952,1739165443868,-500.0,0.00011506,2]
[352555953,1739165443878,-500.0,0.00011506,2]
[352555954,1739165443889,-329.19073265,0.00011506,2]
[352555955,1739165443899,-500.0,0.00011506,2]
[352555956,1739165443908,-500.0,0.00011506,2]
[352555957,1739165443917,-290.69,0.00011506,2]
[352555958,1739165443926,-500.0,0.00011506,2]
[352555959,1739165443936,-500.0,0.00011506,2]
[352555960,1739165443945,-500.0,0.00011506,2]
[352555961,1739165443955,-500.0,0.00011506,2]
[352555962,1739165443964,-669.05,0.00011506,2]
[352555963,1739165443973,-500.0,0.00011506,2]
[352555964,1739165443982,-500.0,0.00011506,2]
[352555965,1739165443991,-1609.86,0.00011506,2]
[352555966,1739165444001,-1512.52,0.00011506,2]
[352555967,1739165444010,-500.0,0.00011506,2]
[352555968,1739165444019,-1362.82,0.00011506,2]
[352555969,1739165444029,-5665.32,0.00011506,2]
[352555970,1739165444039,-500.0,0.00011506,2]
[352555971,1739165444049,-11677.26,0.00011506,2]
[352555972,1739165444060,-819.43,0.00011506,2]
[352555973,1739165444069,-512.45,0.00011506,2]
[352555974,1739165444078,-500.0,0.00011506,2]
[352555975,1739165444087,-500.0,0.00011506,2]
[352555976,1739165444096,-500.0,0.00011506,2]
[352555977,1739165444107,-500.0,0.00011506,2]
[352555978,1739165444116,-500.0,0.00011506,2]
[352555979,1739165444125,-575.92,0.00011506,2]
[352555980,1739165444138,-673.93,0.00011506,2]
[352555981,1739165444148,-759.29,0.00011506,2]
[352555982,1739165444157,-500.0,0.00011506,2]
[352555983,1739165444166,-500.0,0.00011506,2]
[352555984,1739165444175,-846.63,0.00011506,2]
[352555985,1739165444184,-650.09,0.00011506,2]
[352555986,1739165444193,-500.0,0.00011506,2]
[352555987,1739165444202,-500.0,0.00011506,2]
[352555988,1739165444212,-1097.65,0.00011506,2]
[352555989,1739165444221,-1101.87,0.00011506,2]
[352555990,1739165444231,-500.0,0.00011506,2]
[352555991,1739165444241,-505.75,0.00011506,2]
[352555992,1739165444250,-561.61,0.00011506,2]
[352555993,1739165444259,-500.0,0.00011506,2]
[352555994,1739165444269,-500.0,0.00011506,2]
[352555995,1739165444279,-500.0,0.00011506,2]
[352555996,1739165444288,-500.0,0.00011506,2]
[352555997,1739165444297,-616.17095926,0.00011506,2]
[352555998,1739165444306,-528.83,0.00011506,2]
[352555999,1739165444316,-500.0,0.00011506,2]
[352556000,1739165444325,-500.0,0.00011506,2]
[352556001,1739165444335,-1367.88,0.00011506,2]
[352556002,1739165444344,-500.0,0.00011506,2]
[352556003,1739165444354,-500.0,0.00011506,2]
[352556004,1739165444363,-500.0,0.00011506,2]
[352556005,1739165444372,-500.0,0.00011506,2]
[352556006,1739165444382,-500.0,0.00011506,2]
[352556007,1739165444394,-4169.79,0.00011506,2]
[352556008,1739165444403,-1374.75,0.00011506,2]
[352556009,1739165444413,-718.02,0.00011506,2]
[352556010,1739165444423,-500.0,0.00011506,2]
[352556011,1739165444433,-500.0,0.00011506,2]
[352556012,1739165444443,-500.0,0.00011506,2]
[352556013,1739165444453,-500.0,0.00011506,2]
[352556014,1739165444462,-4085.98,0.00011506,2]
[352556015,1739165444472,-506.56848115,0.0001151,2]
[352556016,1739165444481,-500.0,0.00011518,2]
[352556017,1739165444491,-500.0,0.00011518,2]
[352556018,1739165444500,-500.0,0.00011518,2]
[352556019,1739165444510,-508.44500603,0.00011536,2]
[352556020,1739165444519,-500.0,0.00011536,2]
[352556021,1739165444528,-163.67726063,0.00011536,2]
[352556022,1739165444538,-527.43655362,0.00011547,2]
[352556023,1739165444547,-500.0,0.00011547,2]
[352556024,1739165444556,-500.59239481,0.00011547,2]
[352556025,1739165444566,-502.27251224,0.00011547,2]
[352556026,1739165444576,-504.93731554,0.00011551,2]
[352556027,1739165444586,-500.0,0.00011551,2]
[352556028,1739165444596,-500.0,0.00011551,2]
[352556029,1739165444606,-500.0,0.00011551,2]
[352556030,1739165444616,-500.0,0.00011551,2]
[352556031,1739165444625,-500.0,0.00011551,2]
[352556032,1739165444635,-500.0,0.00011643,2]
[352556033,1739165444648,-500.0,0.00011643,2]
[352556034,1739165444660,-500.0,0.00011643,2]
[352556035,1739165444670,-500.0,0.00011643,2]
[352556036,1739165444679,-500.0,0.00011643,2]
[352556037,1739165444689,-537.54,0.00011643,2]
[352556038,1739165444699,-157.05,0.00011643,2]
[352556039,1739165444709,-500.0,0.00011643,2]
[352556040,1739165444718,-500.0,0.00011643,2]
[352556041,1739165444729,-500.0,0.00011643,2]
[352556042,1739165444745,-669.05,0.00011643,2]
[352556043,1739165444755,-500.0,0.00011643,2]
[352556044,1739165444765,-500.0,0.00011643,2]
[352556045,1739165444775,-1609.86,0.00011643,2]
[352556046,1739165444785,-1512.52,0.00011643,2]
[352556047,1739165444795,-500.0,0.00011643,2]
[352556048,1739165444804,-1362.82,0.00011643,2]
[352556049,1739165444814,-5665.32,0.00011643,2]
[352556050,1739165444823,-500.0,0.00011643,2]
[352556051,1739165444832,-11677.26,0.00011643,2]
[352556052,1739165444841,-819.43,0.00011643,2]
[352556053,1739165444851,-512.45,0.00011643,2]
[352556054,1739165444860,-500.0,0.00011643,2]
[352556055,1739165444869,-290.86,0.00011643,2]
[352556056,1739165444879,-500.0,0.00011643,2]
[352556057,1739165444891,-500.0,0.00011643,2]
[352556058,1739165444901,-500.0,0.00011643,2]
[352556059,1739165444912,-673.93,0.00011643,2]
[352556060,1739165444921,-759.29,0.00011643,2]
[352556061,1739165444931,-500.0,0.00011643,2]
[352556062,1739165444941,-500.0,0.00011643,2]
[352556063,1739165444951,-846.63,0.00011643,2]
[352556064,1739165444960,-650.09,0.00011643,2]
[352556065,1739165444970,-500.0,0.00011643,2]
[352556066,1739165444979,-500.0,0.00011643,2]
[352556067,1739165444989,-1097.65,0.00011643,2]
[352556068,1739165444999,-1101.87,0.00011643,2]
[352556069,1739165445009,-500.0,0.00011643,2]
[352556070,1739165445019,-561.61,0.00011643,2]
[352556071,1739165445029,-505.75,0.00011643,2]
[352556072,1739165445039,-500.0,0.00011643,2]
[352556073,1739165445048,-500.0,0.00011643,2]
[352556074,1739165445058,-500.0,0.00011643,2]
[352556075,1739165445067,-500.0,0.00011643,2]
[352556076,1739165445076,-528.83,0.00011643,2]
[352556077,1739165445085,-500.0,0.00011643,2]
[352556078,1739165445095,-500.0,0.00011643,2]
[352556079,1739165445104,-1367.88,0.00011643,2]
[352556080,1739165445114,-500.0,0.00011643,2]
[352556081,1739165445123,-500.0,0.00011643,2]
[352556082,1739165445133,-500.0,0.00011643,2]
[352556083,1739165445144,-500.0,0.00011643,2]
[352556084,1739165445155,-500.0,0.00011643,2]
[352556085,1739165445164,-4169.79,0.00011643,2]
[352556086,1739165445174,-1374.75,0.00011643,2]
[352556087,1739165445184,-718.02,0.00011643,2]
[352556088,1739165445193,-500.0,0.00011643,2]
[352556089,1739165445203,-500.0,0.00011643,2]
[352556090,1739165445212,-323.46379571,0.00011643,2]
[352556091,1739165445222,-500.0,0.00011643,2]
[352556092,1739165445231,-4085.98,0.00011643,2]
[352556093,1739165445241,-1192.74627279,0.00011701,2]
[352556094,1739165445251,-500.0,0.0001178,2]
[352556095,1739165445260,-500.0,0.0001178,2]
[352556096,1739165445270,-500.0,0.0001178,2]
[352556097,1739165445280,-500.0,0.0001178,2]
[352556098,1739165445290,-500.0,0.0001178,2]
[352556099,1739165445299,-500.0,0.0001178,2]
[352556100,1739165445309,-500.0,0.0001178,2]
[352556101,1739165445319,-500.0,0.0001178,2]
[352556102,1739165445329,-669.05,0.0001178,2]
[352556103,1739165445338,-500.0,0.0001178,2]
[352556104,1739165445347,-500.0,0.0001178,2]
[352556105,1739165445357,-1609.86,0.0001178,2]
[352556106,1739165445367,-1512.52,0.0001178,2]
[352556107,1739165445377,-500.0,0.0001178,2]
[352556108,1739165445389,-1362.82,0.0001178,2]
[352556109,1739165445399,-5665.32,0.0001178,2]
[352556110,1739165445408,-500.0,0.0001178,2]
[352556111,1739165445418,-11677.26,0.0001178,2]
[352556112,1739165445428,-819.43,0.0001178,2]
[352556113,1739165445438,-512.45,0.0001178,2]
[352556114,1739165445448,-500.0,0.0001178,2]
[352556115,1739165445457,-500.0,0.0001178,2]
[352556116,1739165445466,-500.0,0.0001178,2]
[352556117,1739165445476,-500.0,0.0001178,2]
[352556118,1739165445487,-673.93,0.0001178,2]
[352556119,1739165445497,-759.29,0.0001178,2]
[352556120,1739165445506,-500.0,0.0001178,2]
[352556121,1739165445516,-500.0,0.0001178,2]
[352556122,1739165445526,-846.63,0.0001178,2]
[352556123,1739165445536,-650.09,0.0001178,2]
[352556124,1739165445547,-500.0,0.0001178,2]
[352556125,1739165445557,-500.0,0.0001178,2]
[352556126,1739165445566,-1097.65,0.0001178,2]
[352556127,1739165445576,-1101.87,0.0001178,2]
[352556128,1739165445585,-500.0,0.0001178,2]
[352556129,1739165445595,-561.61,0.0001178,2]
[352556130,1739165445604,-505.75,0.0001178,2]
[352556131,1739165445614,-500.0,0.0001178,2]
[352556132,1739165445623,-500.0,0.0001178,2]
[352556133,1739165445632,-500.0,0.0001178,2]
[352556134,1739165445644,-500.0,0.0001178,2]
[352556135,1739165445658,-528.83,0.0001178,2]
[352556136,1739165445668,-500.0,0.0001178,2]
[352556137,1739165445678,-500.0,0.0001178,2]
[352556138,1739165445688,-1367.88,0.0001178,2]
[352556139,1739165445698,-245.6398342,0.0001178,2]
[352556140,1739165445708,-500.0,0.0001178,2]
[352556141,1739165445718,-500.0,0.0001178,2]
[352556142,1739165445728,-500.0,0.0001178,2]
[352556143,1739165445738,-500.0,0.0001178,2]
[352556144,1739165445748,-4169.79,0.0001178,2]
[352556145,1739165445758,-1374.75,0.0001178,2]
[352556146,1739165445768,-718.02,0.0001178,2]
[352556147,1739165445777,-500.0,0.0001178,2]
[352556148,1739165445787,-320.61777566,0.0001178,2]
[352556149,1739165445797,-500.0,0.0001178,2]
[352556150,1739165445807,-4085.98,0.0001178,2]
[352556151,1739165445816,-1000.0,0.00011792,2]
[352556152,1739165445825,-1192.74627279,0.00011801,2]
[352556153,1739165445834,-1192.74627279,0.00011901,2]
[352556154,1739165445843,-500.0,0.00011917,2]
[352556155,1739165445852,-500.0,0.00011917,2]
[352556156,1739165445861,-500.0,0.00011917,2]
[352556157,1739165445871,-500.0,0.00011917,2]
[352556158,1739165445880,-500.0,0.00011917,2]
[352556159,1739165445892,-500.0,0.00011917,2]
[352556160,1739165445902,-500.0,0.00011917,2]
[352556161,1739165445911,-232.00203277,0.00011917,2]
[352556162,1739165445922,-669.05,0.00011917,2]
[352556163,1739165445931,-500.0,0.00011917,2]
[352556164,1739165445941,-500.0,0.00011917,2]
[352556165,1739165445951,-1609.86,0.00011917,2]
[352556166,1739165445961,-1512.52,0.00011917,2]
[352556167,1739165445971,-500.0,0.00011917,2]
[352556168,1739165445981,-1362.82,0.00011917,2]
[352556169,1739165445990,-5665.32,0.00011917,2]
[352556170,1739165446000,-500.0,0.00011917,2]
[352556171,1739165446010,-11677.26,0.00011917,2]
[352556172,1739165446020,-819.43,0.00011917,2]
[352556173,1739165446030,-512.45,0.00011917,2]
[352556174,1739165446039,-500.0,0.00011917,2]
[352556175,1739165446049,-500.0,0.00011917,2]
[352556176,1739165446060,-500.0,0.00011917,2]
[352556178,1739165446069,-500.0,0.00011917,2]
[352556179,1739165446078,-673.93,0.00011917,2]
[352556181,1739165446088,-759.29,0.00011917,2]
[352556182,1739165446097,-500.0,0.00011917,2]
[352556183,1739165446107,-500.0,0.00011917,2]
[352556184,1739165446117,-846.63,0.00011917,2]
[352556185,1739165446127,-650.09,0.00011917,2]
[352556186,1739165446136,-500.0,0.00011917,2]
[352556187,1739165446146,-500.0,0.00011917,2]
[352556188,1739165446156,-1097.65,0.00011917,2]
[352556189,1739165446165,-1101.87,0.00011917,2]
[352556190,1739165446175,-500.0,0.00011917,2]
[352556191,1739165446185,-561.61,0.00011917,2]
[352556192,1739165446195,-505.75,0.00011917,2]
[352556193,1739165446205,-500.0,0.00011917,2]
[352556194,1739165446215,-500.0,0.00011917,2]
[352556195,1739165446224,-500.0,0.00011917,2]
[352556196,1739165446234,-500.0,0.00011917,2]
[352556197,1739165446243,-528.83,0.00011917,2]
[352556198,1739165446253,-500.0,0.00011917,2]
[352556199,1739165446263,-500.0,0.00011917,2]
[352556200,1739165446272,-1367.88,0.00011917,2]
[352556201,1739165446281,-500.0,0.00011917,2]
[352556202,1739165446291,-500.0,0.00011917,2]
[352556203,1739165446300,-540.32,0.00011917,2]
[352556204,1739165446310,-500.0,0.00011917,2]
[352556205,1739165446319,-4169.79,0.00011917,2]
[352556206,1739165446329,-1374.75,0.00011917,2]
[352556207,1739165446338,-718.02,0.00011917,2]
[352556208,1739165446348,-500.0,0.00011917,2]
[352556209,1739165446359,-500.0,0.00011917,2]
[352556210,1739165446369,-4085.98,0.00011917,2]
[352556211,1739165446379,-1192.74627279,0.00012001,2]
[352556212,1739165446389,-575.1778685,0.00012032,2]
[352556213,1739165446398,-322.0,0.00012041,2]
[352556214,1739165446408,-500.63881708,0.00012051,2]
[352556215,1739165446418,-500.0,0.00012054,2]
[352556216,1739165446428,-500.0,0.00012054,2]
[352556217,1739165446437,-500.0,0.00012054,2]
[352556218,1739165446447,-500.0,0.00012054,2]
[352556219,1739165446457,-500.0,0.00012054,2]
[352556220,1739165446466,-500.0,0.00012054,2]
[352556221,1739165446476,-500.0,0.00012054,2]
[352556222,1739165446487,-669.05,0.00012054,2]
[352556223,1739165446503,-500.0,0.00012054,2]
[352556224,1739165446516,-500.0,0.00012054,2]
[352556225,1739165446526,-1609.86,0.00012054,2]
[352556226,1739165446536,-1512.52,0.00012054,2]
[352556227,1739165446545,-500.0,0.00012054,2]
[352556228,1739165446556,-1362.82,0.00012054,2]
[352556229,1739165446566,-5665.32,0.00012054,2]
[352556230,1739165446576,-500.0,0.00012054,2]
[352556231,1739165446586,-11677.26,0.00012054,2]
[352556232,1739165446595,-819.43,0.00012054,2]
[352556233,1739165446606,-512.45,0.00012054,2]
[352556234,1739165446617,-500.0,0.00012054,2]
[352556235,1739165446628,-500.0,0.00012054,2]
[352556236,1739165446639,-519.56057273,0.00012054,2]
[352556237,1739165446653,-500.0,0.00012054,2]
[352556238,1739165446663,-673.93,0.00012054,2]
[352556239,1739165446673,-759.29,0.00012054,2]
[352556240,1739165446684,-500.0,0.00012054,2]
[352556241,1739165446694,-500.0,0.00012054,2]
[352556242,1739165446704,-846.63,0.00012054,2]
[352556243,1739165446830,-650.09,0.00012054,2]
[352556244,1739165446840,-383.46,0.00012054,2]
[352556245,1739165446850,-500.0,0.00012054,2]
[352556246,1739165446860,-1097.65,0.00012054,2]
[352556247,1739165446869,-1101.87,0.00012054,2]
[352556248,1739165446879,-500.0,0.00012054,2]
[352556249,1739165446891,-561.61,0.00012054,2]
[352556250,1739165446901,-505.75,0.00012054,2]
[352556251,1739165446911,-500.0,0.00012054,2]
[352556252,1739165446921,-500.0,0.00012054,2]
[352556253,1739165446931,-500.0,0.00012054,2]
[352556254,1739165446941,-500.0,0.00012054,2]
[352556255,1739165446951,-528.83,0.00012054,2]
[352556256,1739165446960,-500.0,0.00012054,2]
[352556257,1739165446969,-500.0,0.00012054,2]
[352556258,1739165446979,-1367.88,0.00012054,2]
[352556259,1739165446988,-500.0,0.00012054,2]
[352556260,1739165446998,-500.0,0.00012054,2]
[352556261,1739165447008,-500.0,0.00012054,2]
[352556262,1739165447018,-4169.79,0.00012054,2]
[352556263,1739165447027,-1374.75,0.00012054,2]
[352556264,1739165447037,-718.02,0.00012054,2]
[352556265,1739165447047,-500.0,0.00012054,2]
[352556266,1739165447057,-500.0,0.00012054,2]
[352556267,1739165447066,-4085.98,0.00012054,2]
[352556268,1739165447076,-360.60598572,0.00012066,2]
[352556269,1739165447085,-411.6878396,0.00012066,2]
[352556270,1739165447095,-1500.0,0.00012066,2]
[352556271,1739165447105,-1000.0,0.00012084,2]
[352556272,1739165447115,-1000.0,0.00012095,2]
[352556273,1739165447124,-1000.0,0.00012099,2]
[352556274,1739165447134,-1000.0,0.00012099,2]
[352556275,1739165447145,-1000.0,0.00012099,2]
[352556276,1739165447154,-1000.8912339,0.00012099,2]
[352556277,1739165447164,-1000.74367822,0.00012099,2]
[352556278,1739165447174,-1192.74627279,0.00012101,2]
[352556279,1739165447184,-500.0,0.00012176,2]
[352556280,1739165447194,-503.21350288,0.00012181,2]
[352556281,1739165447204,-196.83552497,0.0001219,2]
[352556282,1739165447214,-500.0,0.0001219,2]
[352556283,1739165447224,-500.0,0.0001219,2]
[352556284,1739165447234,-500.0,0.0001219,2]
[352556285,1739165447243,-500.0,0.0001219,2]
[352556286,1739165447253,-370.71900268,0.0001219,2]
[352556287,1739165447263,-500.0,0.00012191,2]
[352556288,1739165447273,-500.0,0.00012191,2]
[352556289,1739165447282,-500.0,0.00012191,2]
[352556290,1739165447292,-500.0,0.00012191,2]
[352556291,1739165447301,-500.0,0.00012191,2]
[352556292,1739165447311,-500.0,0.00012191,2]
[352556293,1739165447321,-500.0,0.00012191,2]
[352556294,1739165447331,-669.05,0.00012191,2]
[352556295,1739165447340,-322.93435508,0.00012191,2]
[352556296,1739165447350,-542.40963216,0.00012191,2]
[352556297,1739165447359,-1609.86,0.00012191,2]
[352556298,1739165447369,-1512.52,0.00012191,2]
[352556299,1739165447378,-500.0,0.00012191,2]
[352556300,1739165447388,-1362.82,0.00012191,2]
[352556301,1739165447398,-5665.32,0.00012191,2]
[352556302,1739165447407,-500.0,0.00012191,2]
[352556303,1739165447416,-11677.26,0.00012191,2]
[352556304,1739165447426,-819.43,0.00012191,2]
[352556305,1739165447436,-512.45,0.00012191,2]
[352556306,1739165447445,-500.0,0.00012191,2]
[352556307,1739165447455,-500.0,0.00012191,2]
[352556308,1739165447465,-500.0,0.00012191,2]
[352556309,1739165447475,-673.93,0.00012191,2]
[352556310,1739165447486,-759.29,0.00012191,2]
[352556311,1739165447496,-500.0,0.00012191,2]
[352556312,1739165447507,-500.0,0.00012191,2]
[352556313,1739165447517,-846.63,0.00012191,2]
[352556314,1739165447527,-650.09,0.00012191,2]
[352556315,1739165447537,-500.0,0.00012191,2]
[352556316,1739165447547,-1097.65,0.00012191,2]
[352556317,1739165447557,-1101.87,0.00012191,2]
[352556318,1739165447567,-500.0,0.00012191,2]
[352556319,1739165447578,-505.75,0.00012191,2]
[352556320,1739165447588,-561.61,0.00012191,2]
[352556321,1739165447598,-500.0,0.00012191,2]
[352556322,1739165447607,-500.0,0.00012191,2]
[352556323,1739165447618,-500.0,0.00012191,2]
[352556324,1739165447629,-500.0,0.00012191,2]
[352556325,1739165447641,-528.83,0.00012191,2]
[352556326,1739165447652,-500.0,0.00012191,2]
[352556327,1739165447664,-500.0,0.00012191,2]
[352556328,1739165447674,-1367.88,0.00012191,2]
[352556329,1739165447686,-568.92727519,0.00012191,2]
[352556330,1739165447696,-500.0,0.00012191,2]
[352556331,1739165447706,-500.0,0.00012191,2]
[352556332,1739165447718,-4169.79,0.00012191,2]
[352556333,1739165447728,-1374.75,0.00012191,2]
[352556334,1739165447738,-718.02,0.00012191,2]
[352556335,1739165447748,-500.0,0.00012191,2]
[352556336,1739165447758,-500.0,0.00012191,2]
[352556337,1739165447768,-4085.98,0.00012191,2]
[352556338,1739165447778,-1192.74627279,0.00012201,2]
[352556339,1739165447788,-1192.74627279,0.00012301,2]
[352556340,1739165447798,-500.0,0.00012328,2]
[352556341,1739165447806,-500.0,0.00012328,2]
[352556342,1739165447816,-500.0,0.00012328,2]
[352556343,1739165447826,-500.0,0.00012328,2]
[352556344,1739165447836,-500.0,0.00012328,2]
[352556345,1739165447845,-500.0,0.00012328,2]
[352556346,1739165447855,-500.0,0.00012328,2]
[352556347,1739165447866,-669.05,0.00012328,2]
[352556348,1739165447875,-1609.86,0.00012328,2]
[352556349,1739165447885,-1512.52,0.00012328,2]
[352556350,1739165447897,-500.0,0.00012328,2]
[352556351,1739165447907,-1362.82,0.00012328,2]
[352556352,1739165447918,-5665.32,0.00012328,2]
[352556353,1739165447928,-500.0,0.00012328,2]
[352556354,1739165447938,-11677.26,0.00012328,2]
[352556355,1739165447948,-819.43,0.00012328,2]
[352556356,1739165447958,-512.45,0.00012328,2]
[352556357,1739165447969,-500.0,0.00012328,2]
[352556358,1739165447979,-500.0,0.00012328,2]
[352556359,1739165447990,-500.0,0.00012328,2]
[352556360,1739165448000,-673.93,0.00012328,2]
[352556361,1739165448012,-759.29,0.00012328,2]
[352556362,1739165448027,-500.0,0.00012328,2]
[352556363,1739165448037,-500.0,0.00012328,2]
[352556364,1739165448049,-846.63,0.00012328,2]
[352556365,1739165448059,-650.09,0.00012328,2]
[352556366,1739165448070,-500.0,0.00012328,2]
[352556367,1739165448081,-1097.65,0.00012328,2]
[352556368,1739165448092,-1101.87,0.00012328,2]
[352556369,1739165448104,-500.0,0.00012328,2]
[352556370,1739165448115,-505.75,0.00012328,2]
[352556371,1739165448125,-561.61,0.00012328,2]
[352556372,1739165448135,-500.0,0.00012328,2]
[352556373,1739165448146,-500.0,0.00012328,2]
[352556374,1739165448157,-500.0,0.00012328,2]
[352556375,1739165448168,-500.0,0.00012328,2]
[352556376,1739165448179,-528.83,0.00012328,2]
[352556377,1739165448189,-500.0,0.00012328,2]
[352556378,1739165448199,-500.0,0.00012328,2]
[352556379,1739165448210,-1367.88,0.00012328,2]